[Event "Late-Titled-Tuesday-Blitz-May-07-2024"]
[Site "Chess.com"]
[Date "2024.05.07"]
[Round "7"]
[White "TigrVShlyape"]
[Black "pouya21"]
[Result "1/2-1/2"]
[WhiteElo "2969"]
[BlackElo "2861"]
[TimeControl "180+1"]
[EndTime "15:17:19 PDT"]
[Termination "Game drawn by agreement"]

1. d4 {[%clk 0:03:00.9]} 1... d5 {[%clk 0:02:55.6]} 2. Bf4 {[%clk 0:02:59.8]}
2... c5 {[%clk 0:02:52.2]} 3. e3 {[%clk 0:02:59.6]} 3... cxd4 {[%clk 0:02:51.9]}
4. exd4 {[%clk 0:02:59.4]} 4... Nc6 {[%clk 0:02:52.6]} 5. c3 {[%clk 0:02:59.2]}
5... Bf5 {[%clk 0:02:52.6]} 6. Nd2 {[%clk 0:02:58.5]} 6... e6 {[%clk 0:02:49.3]}
7. Ngf3 {[%clk 0:02:55.3]} 7... f6 {[%clk 0:02:48.8]} 8. Nh4 {[%clk 0:02:46.7]}
8... g5 {[%clk 0:02:32.1]} 9. g4 {[%clk 0:01:53.3]} 9... Be4 {[%clk 0:02:12.3]}
10. f3 {[%clk 0:01:53]} 10... gxf4 {[%clk 0:02:07.5]} 11. fxe4 {[%clk
0:01:51.5]} 11... f5 {[%clk 0:02:08]} 12. g5 {[%clk 0:01:48.8]} 12... Qxg5
{[%clk 0:01:44.9]} 13. Nhf3 {[%clk 0:01:47.5]} 13... Qh6 {[%clk 0:01:37.7]} 14.
exd5 {[%clk 0:01:33.3]} 14... exd5 {[%clk 0:01:37.5]} 15. Qe2+ {[%clk
0:01:33.6]} 15... Be7 {[%clk 0:01:26.6]} 16. O-O-O {[%clk 0:01:30.4]} 16...
O-O-O {[%clk 0:01:20.9]} 17. Qd3 {[%clk 0:01:26.6]} 17... Qh5 {[%clk 0:01:11.7]}
18. Ne5 {[%clk 0:01:22.9]} 18... Nxe5 {[%clk 0:00:58.8]} 19. dxe5 {[%clk
0:01:22.4]} 19... Nh6 {[%clk 0:00:57.1]} 20. h3 {[%clk 0:01:13.8]} 20... Qg6
{[%clk 0:00:52.4]} 21. Nf3 {[%clk 0:01:12.5]} 21... Kb8 {[%clk 0:00:50.9]} 22.
Rg1 {[%clk 0:01:10.1]} 22... Qb6 {[%clk 0:00:49.4]} 23. Kb1 {[%clk 0:01:06.7]}
23... Bc5 {[%clk 0:00:49.3]} 24. Rg7 {[%clk 0:00:59.1]} 24... Bf8 {[%clk
0:00:39.5]} 25. Rg1 {[%clk 0:00:58]} 25... Qe3 {[%clk 0:00:38.7]} 26. Be2 {[%clk
0:00:52.9]} 26... Bc5 {[%clk 0:00:37.8]} 27. Rg7 {[%clk 0:00:48.4]} 27... Qe4
{[%clk 0:00:26.2]} 28. a3 {[%clk 0:00:33.9]} 28... Bb6 {[%clk 0:00:22.7]} 29.
Ka2 {[%clk 0:00:33.7]} 29... Rdg8 {[%clk 0:00:18.2]} 30. Rxg8+ {[%clk
0:00:26.2]} 30... Rxg8 {[%clk 0:00:19.1]} 31. Qb5 {[%clk 0:00:23.8]} 31... Rd8
{[%clk 0:00:17.5]} 32. a4 {[%clk 0:00:18.3]} 32... Nf7 {[%clk 0:00:15.9]} 33.
Re1 {[%clk 0:00:12.8]} 33... Nxe5 {[%clk 0:00:07.8]} 34. Nxe5 {[%clk 0:00:12.2]}
34... Qxe5 {[%clk 0:00:08.2]} 35. Rd1 {[%clk 0:00:12.5]} 35... Qc7 {[%clk
0:00:07.1]} 36. Bf3 {[%clk 0:00:12.2]} 36... Qc4+ {[%clk 0:00:06.6]} 37. Qxc4
{[%clk 0:00:12.1]} 37... dxc4 {[%clk 0:00:07.5]} 38. Rxd8+ {[%clk 0:00:11.9]}
38... Bxd8 {[%clk 0:00:08.4]} 39. Bd5 {[%clk 0:00:11.1]} 39... Kc7 {[%clk
0:00:08.6]} 40. Kb1 {[%clk 0:00:11.4]} 40... b6 {[%clk 0:00:08.5]} 41. Kc2
{[%clk 0:00:11.7]} 41... Kd6 {[%clk 0:00:09.1]} 42. Bxc4 {[%clk 0:00:12]} 42...
f3 {[%clk 0:00:09]} 43. Kd3 {[%clk 0:00:11.4]} 43... Ke5 {[%clk 0:00:09.2]} 44.
Ke3 {[%clk 0:00:11.3]} 44... Bg5+ {[%clk 0:00:09.1]} 45. Kxf3 {[%clk 0:00:11.4]}
45... Bc1 {[%clk 0:00:09.9]} 46. b3 {[%clk 0:00:11.2]} 46... Bb2 {[%clk
0:00:10.5]} 47. Bg8 {[%clk 0:00:11.2]} 47... h6 {[%clk 0:00:09.8]} 48. Bf7
{[%clk 0:00:11.3]} 48... Bxc3 {[%clk 0:00:09.6]} 49. Bg8 {[%clk 0:00:11.7]}
49... Bb4 {[%clk 0:00:10.2]} 50. Bf7 {[%clk 0:00:12]} 50... a5 {[%clk 0:00:11]}
51. Bg8 {[%clk 0:00:12.3]} 51... Bc5 {[%clk 0:00:10.8]} 52. Bf7 {[%clk
0:00:12.6]} 52... Bb4 {[%clk 0:00:11.7]} 53. Bg8 {[%clk 0:00:12.8]} 53... Bc5
{[%clk 0:00:11.2]} 1/2-1/2

[Event "Late-Titled-Tuesday-Blitz-May-07-2024"]
[Site "Chess.com"]
[Date "2024.05.07"]
[Round "7"]
[White "NCchamp"]
[Black "Hakiki_satranc"]
[Result "0-1"]
[WhiteElo "2261"]
[BlackElo "2411"]
[TimeControl "180+1"]
[EndTime "15:17:21 PDT"]
[Termination "Hakiki_satranc won on time"]

1. d4 {[%clk 0:03:00.9]} 1... Nf6 {[%clk 0:02:58.9]} 2. Bg5 {[%clk 0:02:58.8]}
2... c5 {[%clk 0:02:55.5]} 3. Bxf6 {[%clk 0:02:57.8]} 3... gxf6 {[%clk
0:02:56.4]} 4. d5 {[%clk 0:02:58.4]} 4... Qb6 {[%clk 0:02:48.1]} 5. Qc1 {[%clk
0:02:57.2]} 5... f5 {[%clk 0:02:37.1]} 6. c4 {[%clk 0:02:53]} 6... Bg7 {[%clk
0:02:34.4]} 7. Nc3 {[%clk 0:02:50.8]} 7... d6 {[%clk 0:02:11.8]} 8. e3 {[%clk
0:02:44]} 8... Na6 {[%clk 0:02:06.9]} 9. Nh3 {[%clk 0:02:19.6]} 9... Qa5 {[%clk
0:02:05.3]} 10. Nf4 {[%clk 0:02:01.6]} 10... Nc7 {[%clk 0:01:58.3]} 11. Bd3
{[%clk 0:01:54]} 11... e5 {[%clk 0:01:36.8]} 12. Ne2 {[%clk 0:01:21.1]} 12...
Bd7 {[%clk 0:01:25.2]} 13. O-O {[%clk 0:01:13.9]} 13... h5 {[%clk 0:01:21]} 14.
Kh1 {[%clk 0:01:10.1]} 14... h4 {[%clk 0:01:20.4]} 15. h3 {[%clk 0:01:08.8]}
15... O-O-O {[%clk 0:01:12]} 16. a3 {[%clk 0:01:07.8]} 16... Bh6 {[%clk
0:00:57.5]} 17. b4 {[%clk 0:00:47.8]} 17... Qb6 {[%clk 0:00:57.9]} 18. Rb1
{[%clk 0:00:40.7]} 18... Rdg8 {[%clk 0:00:46.5]} 19. Rg1 {[%clk 0:00:21.2]}
19... Na6 {[%clk 0:00:33.1]} 20. bxc5 {[%clk 0:00:18.1]} 20... Qxc5 {[%clk
0:00:32.2]} 21. Nb5 {[%clk 0:00:16.8]} 21... Kb8 {[%clk 0:00:30.2]} 22. Nec3
{[%clk 0:00:12.7]} 22... Bxb5 {[%clk 0:00:25.8]} 23. Rxb5 {[%clk 0:00:11]} 23...
Qc8 {[%clk 0:00:22.2]} 24. Qb2 {[%clk 0:00:10.8]} 24... Nc5 {[%clk 0:00:21.1]}
25. Be2 {[%clk 0:00:11.1]} 25... e4 {[%clk 0:00:19.3]} 26. Rb1 {[%clk
0:00:11.5]} 26... Bg7 {[%clk 0:00:18.4]} 27. Qb4 {[%clk 0:00:10.3]} 27... Bxc3
{[%clk 0:00:17.9]} 28. Qxc3 {[%clk 0:00:10.2]} 28... Rh7 {[%clk 0:00:16.7]} 29.
Qb4 {[%clk 0:00:08.5]} 29... f6 {[%clk 0:00:16.6]} 30. Bf1 {[%clk 0:00:08.4]}
30... Rhg7 {[%clk 0:00:16.5]} 31. a4 {[%clk 0:00:08.4]} 31... Ka8 {[%clk
0:00:15.1]} 32. a5 {[%clk 0:00:08.8]} 32... Rh8 {[%clk 0:00:09.7]} 33. Qb2
{[%clk 0:00:09.2]} 33... Rhg8 {[%clk 0:00:10]} 34. Qxf6 {[%clk 0:00:09.5]} 34...
f4 {[%clk 0:00:09.2]} 35. Qxf4 {[%clk 0:00:09.5]} 35... Qc7 {[%clk 0:00:06.5]}
36. a6 {[%clk 0:00:08.2]} 36... b6 {[%clk 0:00:06.1]} 37. Rd1 {[%clk 0:00:05.6]}
37... Nd3 {[%clk 0:00:05.8]} 38. Bxd3 {[%clk 0:00:04.9]} 38... exd3 {[%clk
0:00:06.7]} 39. Qf3 {[%clk 0:00:04.1]} 39... Qxc4 {[%clk 0:00:04]} 40. Rbb1
{[%clk 0:00:02.5]} 40... Rxg2 {[%clk 0:00:03]} 41. Rbc1 {[%clk 0:00:01.6]} 41...
Qe4 {[%clk 0:00:00.2]} 42. Qxe4 {[%clk 0:00:01.5]} 42... Rxf2 {[%clk 0:00:00.4]}
43. Qe6 {[%clk 0:00:00.6]} 43... d2 {[%clk 0:00:00.4]} 0-1

[Event "Late-Titled-Tuesday-Blitz-May-07-2024"]
[Site "Chess.com"]
[Date "2024.05.07"]
[Round "7"]
[White "h4parah5"]
[Black "bancsoo"]
[Result "1-0"]
[WhiteElo "3023"]
[BlackElo "2865"]
[TimeControl "180+1"]
[EndTime "15:17:23 PDT"]
[Termination "h4parah5 won by resignation"]

1. Nf3 {[%clk 0:03:00.9]} 1... d5 {[%clk 0:02:59.8]} 2. e3 {[%clk 0:03:00.7]}
2... Nf6 {[%clk 0:02:59.8]} 3. c4 {[%clk 0:03:00.3]} 3... c6 {[%clk 0:03:00.3]}
4. Qc2 {[%clk 0:03:00.1]} 4... g6 {[%clk 0:02:58.6]} 5. b3 {[%clk 0:03:00.1]}
5... Bg7 {[%clk 0:02:58.9]} 6. Bb2 {[%clk 0:03:00.3]} 6... O-O {[%clk
0:02:59.4]} 7. Be2 {[%clk 0:03:00.7]} 7... Bf5 {[%clk 0:02:56]} 8. d3 {[%clk
0:03:00.3]} 8... a5 {[%clk 0:02:49]} 9. O-O {[%clk 0:02:57.3]} 9... Na6 {[%clk
0:02:49.1]} 10. a3 {[%clk 0:02:55.6]} 10... Re8 {[%clk 0:02:39.8]} 11. Rd1
{[%clk 0:02:54.3]} 11... Rc8 {[%clk 0:02:32.8]} 12. Nbd2 {[%clk 0:02:42.1]}
12... Bg4 {[%clk 0:02:19.3]} 13. h3 {[%clk 0:02:40.8]} 13... Bxf3 {[%clk
0:02:18.5]} 14. Nxf3 {[%clk 0:02:40.3]} 14... e6 {[%clk 0:02:17.2]} 15. Bc3
{[%clk 0:02:33.8]} 15... b5 {[%clk 0:02:12.5]} 16. d4 {[%clk 0:02:26.5]} 16...
Ne4 {[%clk 0:02:04.6]} 17. Be1 {[%clk 0:02:25]} 17... Qb6 {[%clk 0:02:04.5]} 18.
Rab1 {[%clk 0:02:10.1]} 18... Nb8 {[%clk 0:01:39.1]} 19. Bd3 {[%clk 0:02:02.9]}
19... f5 {[%clk 0:01:30.7]} 20. Qe2 {[%clk 0:02:01.9]} 20... b4 {[%clk
0:01:22.3]} 21. c5 {[%clk 0:01:58.6]} 21... Qb7 {[%clk 0:01:20.1]} 22. Ra1
{[%clk 0:01:56.7]} 22... e5 {[%clk 0:00:50.8]} 23. axb4 {[%clk 0:01:54.4]} 23...
axb4 {[%clk 0:00:50.9]} 24. Qc2 {[%clk 0:01:44.3]} 24... exd4 {[%clk 0:00:48.1]}
25. exd4 {[%clk 0:01:45.2]} 25... Rc7 {[%clk 0:00:43.2]} 26. Ra4 {[%clk
0:01:43.8]} 26... Nc3 {[%clk 0:00:43.2]} 27. Bxc3 {[%clk 0:01:40.3]} 27... bxc3
{[%clk 0:00:43.7]} 28. Qxc3 {[%clk 0:01:40]} 28... Rce7 {[%clk 0:00:44.3]} 29.
Raa1 {[%clk 0:01:34.9]} 29... Nd7 {[%clk 0:00:42.6]} 30. Re1 {[%clk 0:01:34.7]}
30... Nf8 {[%clk 0:00:42.4]} 31. Rxe7 {[%clk 0:01:34.1]} 31... Rxe7 {[%clk
0:00:42.9]} 32. b4 {[%clk 0:01:32.5]} 32... Ne6 {[%clk 0:00:38.4]} 33. Rb1
{[%clk 0:01:32.5]} 33... Qc7 {[%clk 0:00:36.2]} 34. Bf1 {[%clk 0:01:28.2]} 34...
Qf4 {[%clk 0:00:35.9]} 35. g3 {[%clk 0:01:22.9]} 35... Qc7 {[%clk 0:00:27.4]}
36. Kg2 {[%clk 0:01:20]} 36... g5 {[%clk 0:00:27.4]} 37. Re1 {[%clk 0:01:15.1]}
37... g4 {[%clk 0:00:26.6]} 38. hxg4 {[%clk 0:01:12.1]} 38... fxg4 {[%clk
0:00:27.5]} 39. Ne5 {[%clk 0:01:11.8]} 39... Nxd4 {[%clk 0:00:21.4]} 40. Nxg4
{[%clk 0:00:56.4]} 40... h5 {[%clk 0:00:15]} 41. Nh2 {[%clk 0:00:51.6]} 41...
Rf7 {[%clk 0:00:12.4]} 42. Re8+ {[%clk 0:00:48.9]} 42... Rf8 {[%clk 0:00:13]}
43. Rxf8+ {[%clk 0:00:49]} 43... Kxf8 {[%clk 0:00:13.9]} 44. Nf3 {[%clk
0:00:47.4]} 44... Nf5 {[%clk 0:00:13]} 45. Qd3 {[%clk 0:00:47.2]} 45... Qf7
{[%clk 0:00:13.1]} 46. Qa6 {[%clk 0:00:39.7]} 46... Qf6 {[%clk 0:00:10.8]} 47.
Bd3 {[%clk 0:00:39]} 47... Ne7 {[%clk 0:00:10.5]} 48. Qa8+ {[%clk 0:00:33.7]}
48... Kf7 {[%clk 0:00:10.7]} 49. Qb8 {[%clk 0:00:34.1]} 49... Bh6 {[%clk
0:00:10.4]} 50. Ne5+ {[%clk 0:00:30.3]} 50... Kg7 {[%clk 0:00:10.6]} 51. Qd6
{[%clk 0:00:29.8]} 51... Bg5 {[%clk 0:00:08.4]} 52. f4 {[%clk 0:00:28.5]} 52...
Bh6 {[%clk 0:00:08.3]} 53. Qd7 {[%clk 0:00:26.5]} 53... h4 {[%clk 0:00:06.5]}
54. Nxc6 {[%clk 0:00:26.2]} 54... Kf8 {[%clk 0:00:02.4]} 55. Qd8+ {[%clk
0:00:24.9]} 1-0

[Event "Late-Titled-Tuesday-Blitz-May-07-2024"]
[Site "Chess.com"]
[Date "2024.05.07"]
[Round "7"]
[White "Denmark2015"]
[Black "NovakRatko"]
[Result "1-0"]
[WhiteElo "2584"]
[BlackElo "2406"]
[TimeControl "180+1"]
[EndTime "15:17:23 PDT"]
[Termination "Denmark2015 won on time"]

1. d4 {[%clk 0:03:00.9]} 1... d5 {[%clk 0:02:59.4]} 2. c4 {[%clk 0:03:01.1]}
2... c5 {[%clk 0:02:59.4]} 3. cxd5 {[%clk 0:02:51.6]} 3... Qxd5 {[%clk
0:03:00.3]} 4. Nc3 {[%clk 0:02:44.9]} 4... Qxd4 {[%clk 0:03:00]} 5. Qxd4 {[%clk
0:02:44.6]} 5... cxd4 {[%clk 0:03:00.9]} 6. Nb5 {[%clk 0:02:44.4]} 6... Na6
{[%clk 0:03:01.1]} 7. Nf3 {[%clk 0:02:36.8]} 7... f6 {[%clk 0:03:00.9]} 8. Nbxd4
{[%clk 0:02:34.4]} 8... e5 {[%clk 0:03:00.9]} 9. Nb5 {[%clk 0:02:27.3]} 9... e4
{[%clk 0:02:56.2]} 10. Nfd4 {[%clk 0:02:25.7]} 10... Bb4+ {[%clk 0:02:55.8]} 11.
Bd2 {[%clk 0:02:24.2]} 11... Bxd2+ {[%clk 0:02:56]} 12. Kxd2 {[%clk 0:02:25.1]}
12... Ne7 {[%clk 0:02:48.8]} 13. e3 {[%clk 0:02:22]} 13... O-O {[%clk
0:02:45.3]} 14. Rc1 {[%clk 0:02:21.3]} 14... b6 {[%clk 0:02:29.7]} 15. Nc7
{[%clk 0:02:01.2]} 15... Nxc7 {[%clk 0:02:25]} 16. Rxc7 {[%clk 0:02:02.1]} 16...
Ng6 {[%clk 0:02:19]} 17. Bc4+ {[%clk 0:01:44]} 17... Kh8 {[%clk 0:02:18.8]} 18.
Bd5 {[%clk 0:01:43.9]} 18... Rb8 {[%clk 0:02:14.3]} 19. Bxe4 {[%clk 0:01:35.7]}
19... f5 {[%clk 0:02:12.1]} 20. Bd3 {[%clk 0:01:30.1]} 20... Ne5 {[%clk
0:02:10.6]} 21. Rxa7 {[%clk 0:01:23.4]} 21... f4 {[%clk 0:02:08.6]} 22. Be4
{[%clk 0:00:52]} 22... fxe3+ {[%clk 0:02:05.5]} 23. fxe3 {[%clk 0:00:52.9]}
23... Rf2+ {[%clk 0:02:05.7]} 24. Kc3 {[%clk 0:00:44.8]} 24... Bg4 {[%clk
0:01:54.5]} 25. Ra8 {[%clk 0:00:44.7]} 25... Rxa8 {[%clk 0:01:52.9]} 26. Bxa8
{[%clk 0:00:45.6]} 26... h6 {[%clk 0:01:42.7]} 27. a4 {[%clk 0:00:45.2]} 27...
Bh5 {[%clk 0:01:41]} 28. Be4 {[%clk 0:00:43.9]} 28... Ng4 {[%clk 0:01:40.7]} 29.
Bf3 {[%clk 0:00:35.9]} 29... g6 {[%clk 0:01:31.1]} 30. Bxg4 {[%clk 0:00:24.8]}
30... Bxg4 {[%clk 0:01:32]} 31. h3 {[%clk 0:00:23.6]} 31... Bd7 {[%clk
0:01:30.4]} 32. Ra1 {[%clk 0:00:18.4]} 32... Rxg2 {[%clk 0:01:29.8]} 33. b4
{[%clk 0:00:19]} 33... Rg3 {[%clk 0:01:29.4]} 34. Kd3 {[%clk 0:00:19]} 34...
Rxh3 {[%clk 0:01:10.6]} 35. a5 {[%clk 0:00:19.4]} 35... bxa5 {[%clk 0:01:11.1]}
36. bxa5 {[%clk 0:00:20.3]} 36... Bc8 {[%clk 0:00:56.8]} 37. a6 {[%clk
0:00:20.4]} 37... g5 {[%clk 0:00:47.1]} 38. a7 {[%clk 0:00:20.5]} 38... Bb7
{[%clk 0:00:47.3]} 39. Rb1 {[%clk 0:00:20.9]} 39... Bd5 {[%clk 0:00:43.7]} 40.
Rb5 {[%clk 0:00:20.1]} 40... Bh1 {[%clk 0:00:43.3]} 41. Rb8+ {[%clk 0:00:18.6]}
41... Kg7 {[%clk 0:00:43.4]} 42. Rb6 {[%clk 0:00:17.6]} 42... g4 {[%clk
0:00:27]} 43. Nc6 {[%clk 0:00:17.3]} 43... g3 {[%clk 0:00:02.7]} 44. a8=Q {[%clk
0:00:17.4]} 44... g2 {[%clk 0:00:02.4]} 45. Qa7+ {[%clk 0:00:17.3]} 45... Kg6
{[%clk 0:00:02.7]} 46. Ne5+ {[%clk 0:00:17.1]} 46... Kg5 {[%clk 0:00:03.4]} 47.
Qg7+ {[%clk 0:00:16.5]} 47... Kf5 {[%clk 0:00:03.9]} 48. Rb1 {[%clk 0:00:13.9]}
1-0

[Event "Late-Titled-Tuesday-Blitz-May-07-2024"]
[Site "Chess.com"]
[Date "2024.05.07"]
[Round "7"]
[White "sergiochess83"]
[Black "FabianoCaruana"]
[Result "0-1"]
[WhiteElo "2893"]
[BlackElo "3086"]
[TimeControl "180+1"]
[EndTime "15:17:24 PDT"]
[Termination "FabianoCaruana won on time"]

1. d4 {[%clk 0:02:51.3]} 1... d5 {[%clk 0:03:00.1]} 2. c4 {[%clk 0:02:51]} 2...
e6 {[%clk 0:03:00.8]} 3. Nc3 {[%clk 0:02:50.7]} 3... Bb4 {[%clk 0:03:00.8]} 4.
e3 {[%clk 0:02:43.8]} 4... Nf6 {[%clk 0:02:59.7]} 5. Bd3 {[%clk 0:02:38.8]} 5...
O-O {[%clk 0:02:56.9]} 6. Nf3 {[%clk 0:02:30.6]} 6... dxc4 {[%clk 0:02:57.1]} 7.
Bxc4 {[%clk 0:02:30.7]} 7... c5 {[%clk 0:02:57.8]} 8. O-O {[%clk 0:02:30.9]}
8... Nc6 {[%clk 0:02:56.6]} 9. a3 {[%clk 0:02:26.6]} 9... Ba5 {[%clk 0:02:56.8]}
10. Ne2 {[%clk 0:02:20.3]} 10... cxd4 {[%clk 0:02:54.3]} 11. Nexd4 {[%clk
0:02:19.8]} 11... Bd7 {[%clk 0:02:53.2]} 12. b4 {[%clk 0:02:16.4]} 12... Bc7
{[%clk 0:02:50.2]} 13. Bb2 {[%clk 0:02:15.5]} 13... Qe7 {[%clk 0:02:48]} 14. Rc1
{[%clk 0:02:00.9]} 14... Rac8 {[%clk 0:02:47.8]} 15. Qe2 {[%clk 0:01:56.5]}
15... a5 {[%clk 0:02:38.1]} 16. bxa5 {[%clk 0:01:45.3]} 16... Bxa5 {[%clk
0:02:33]} 17. Rfd1 {[%clk 0:01:42.5]} 17... h6 {[%clk 0:02:32.4]} 18. h3 {[%clk
0:01:42.8]} 18... Rfd8 {[%clk 0:02:30.9]} 19. Nb5 {[%clk 0:01:36.4]} 19... Be8
{[%clk 0:02:21.8]} 20. Rxd8 {[%clk 0:01:31.9]} 20... Rxd8 {[%clk 0:02:21.6]} 21.
Rd1 {[%clk 0:01:32.3]} 21... Nd5 {[%clk 0:02:17]} 22. Bxd5 {[%clk 0:01:15]}
22... exd5 {[%clk 0:02:16.9]} 23. Nbd4 {[%clk 0:01:13.1]} 23... f6 {[%clk
0:02:14.3]} 24. Qc2 {[%clk 0:01:04.6]} 24... Bc7 {[%clk 0:02:09.6]} 25. Qf5
{[%clk 0:00:56.8]} 25... Bf7 {[%clk 0:02:06.2]} 26. Rc1 {[%clk 0:00:48.5]} 26...
Ne5 {[%clk 0:02:05.4]} 27. Nb5 {[%clk 0:00:40.3]} 27... Bb8 {[%clk 0:02:03.2]}
28. Rc8 {[%clk 0:00:29.2]} 28... Nc4 {[%clk 0:01:50.7]} 29. Rxd8+ {[%clk
0:00:26.8]} 29... Qxd8 {[%clk 0:01:51.6]} 30. Bd4 {[%clk 0:00:25.9]} 30... Qe8
{[%clk 0:01:38.6]} 31. a4 {[%clk 0:00:25.7]} 31... Qe6 {[%clk 0:01:38.5]} 32.
Qxe6 {[%clk 0:00:23.2]} 32... Bxe6 {[%clk 0:01:38.5]} 33. Kf1 {[%clk 0:00:18.5]}
33... Bf5 {[%clk 0:01:27.5]} 34. Ke2 {[%clk 0:00:17.5]} 34... Bc2 {[%clk
0:01:27.2]} 35. Nc3 {[%clk 0:00:16.3]} 35... Kf7 {[%clk 0:01:27.1]} 36. Ne1
{[%clk 0:00:11.8]} 36... Bb3 {[%clk 0:01:27.2]} 37. Nd3 {[%clk 0:00:10.2]} 37...
Nd6 {[%clk 0:01:25.2]} 38. Nf4 {[%clk 0:00:07.3]} 38... Nf5 {[%clk 0:01:13.7]}
39. Nfxd5 {[%clk 0:00:06.1]} 39... Ke6 {[%clk 0:01:13.9]} 40. Nb4 {[%clk
0:00:04.2]} 40... Bc4+ {[%clk 0:01:05.9]} 41. Ke1 {[%clk 0:00:03]} 41... Nxd4
{[%clk 0:01:03.9]} 42. exd4 {[%clk 0:00:03.9]} 42... Bd6 {[%clk 0:01:04.2]} 43.
Nc2 {[%clk 0:00:03.8]} 43... Bb3 {[%clk 0:01:04.5]} 44. Kd2 {[%clk 0:00:03.7]}
44... g5 {[%clk 0:00:58.6]} 45. Kd3 {[%clk 0:00:04.1]} 45... Kd7 {[%clk
0:00:53.2]} 46. Ne3 {[%clk 0:00:04.2]} 46... h5 {[%clk 0:00:47.4]} 47. g4 {[%clk
0:00:04]} 47... h4 {[%clk 0:00:47.3]} 48. Ned5 {[%clk 0:00:02.7]} 48... Ke6
{[%clk 0:00:44.8]} 49. Ne3 {[%clk 0:00:03]} 49... Bb4 {[%clk 0:00:42.4]} 50. Nc4
{[%clk 0:00:01.7]} 50... Bxc3 {[%clk 0:00:41.2]} 51. Kxc3 {[%clk 0:00:01.9]}
51... Bxa4 {[%clk 0:00:42.1]} 52. d5+ {[%clk 0:00:02.1]} 52... Ke7 {[%clk
0:00:39.2]} 53. Kb4 {[%clk 0:00:01.9]} 53... Bd1 {[%clk 0:00:38.5]} 54. Kc5
{[%clk 0:00:02.3]} 54... Bxg4 {[%clk 0:00:27.5]} 55. hxg4 {[%clk 0:00:00.9]}
55... h3 {[%clk 0:00:28.4]} 56. d6+ {[%clk 0:00:01.4]} 56... Ke6 {[%clk
0:00:25.7]} 0-1

[Event "Late-Titled-Tuesday-Blitz-May-07-2024"]
[Site "Chess.com"]
[Date "2024.05.07"]
[Round "7"]
[White "jinxy2009"]
[Black "picturesquecheck"]
[Result "0-1"]
[WhiteElo "2291"]
[BlackElo "2452"]
[TimeControl "180+1"]
[EndTime "15:17:24 PDT"]
[Termination "picturesquecheck won on time"]

1. e4 {[%clk 0:03:00.9]} 1... d6 {[%clk 0:02:58]} 2. d4 {[%clk 0:03:00.6]} 2...
Nf6 {[%clk 0:02:57.6]} 3. Nc3 {[%clk 0:03:01]} 3... g6 {[%clk 0:02:57]} 4. f4
{[%clk 0:03:01.6]} 4... Bg7 {[%clk 0:02:55.2]} 5. Nf3 {[%clk 0:03:02.2]} 5...
O-O {[%clk 0:02:53.9]} 6. Bd3 {[%clk 0:03:02.8]} 6... Bg4 {[%clk 0:02:50.1]} 7.
O-O {[%clk 0:03:00.7]} 7... Nfd7 {[%clk 0:02:46.2]} 8. Ne2 {[%clk 0:02:56.6]}
8... c5 {[%clk 0:02:42.2]} 9. c3 {[%clk 0:02:56.4]} 9... Nc6 {[%clk 0:02:33.4]}
10. Be3 {[%clk 0:02:52.1]} 10... cxd4 {[%clk 0:02:32.2]} 11. Nexd4 {[%clk
0:02:41.5]} 11... Nxd4 {[%clk 0:02:30.1]} 12. cxd4 {[%clk 0:02:41.2]} 12... Qb6
{[%clk 0:02:27.8]} 13. Qa4 {[%clk 0:02:21.5]} 13... Qxb2 {[%clk 0:02:20.7]} 14.
Rab1 {[%clk 0:02:09.2]} 14... Qc3 {[%clk 0:02:19.3]} 15. Rb3 {[%clk 0:02:06.6]}
15... Qc7 {[%clk 0:02:11]} 16. h3 {[%clk 0:02:00.4]} 16... Bxf3 {[%clk
0:02:10.7]} 17. Rxf3 {[%clk 0:02:00.7]} 17... Nb6 {[%clk 0:02:11]} 18. Qa5
{[%clk 0:01:50.3]} 18... Rfc8 {[%clk 0:02:09]} 19. f5 {[%clk 0:01:36.2]} 19...
Nd7 {[%clk 0:01:23.5]} 20. Qe1 {[%clk 0:01:10]} 20... a6 {[%clk 0:01:23.3]} 21.
fxg6 {[%clk 0:00:29]} 21... hxg6 {[%clk 0:01:20.7]} 22. Rb1 {[%clk 0:00:26]}
22... e5 {[%clk 0:01:16.2]} 23. Rc1 {[%clk 0:00:20.6]} 23... Qd8 {[%clk
0:01:15.5]} 24. Bc4 {[%clk 0:00:20.2]} 24... Nf6 {[%clk 0:01:04.2]} 25. Bg5
{[%clk 0:00:18.4]} 25... Qb6 {[%clk 0:00:55.9]} 26. Qf1 {[%clk 0:00:07.1]} 26...
Qxd4+ {[%clk 0:00:50.8]} 27. Kh1 {[%clk 0:00:07.3]} 27... b5 {[%clk 0:00:44.8]}
28. Bxf6 {[%clk 0:00:06.1]} 28... Rxc4 {[%clk 0:00:43.1]} 29. Rxc4 {[%clk
0:00:05.4]} 29... Qxc4 {[%clk 0:00:43.4]} 30. Bxg7 {[%clk 0:00:05.9]} 30...
Qxf1+ {[%clk 0:00:42.8]} 31. Rxf1 {[%clk 0:00:06.8]} 31... Kxg7 {[%clk
0:00:43.2]} 32. Rd1 {[%clk 0:00:07.7]} 32... Rd8 {[%clk 0:00:42]} 33. Rd5 {[%clk
0:00:01.9]} 33... Kf6 {[%clk 0:00:41.8]} 34. Kg1 {[%clk 0:00:02.5]} 34... Ke6
{[%clk 0:00:41.4]} 35. Kf2 {[%clk 0:00:03.2]} 35... f5 {[%clk 0:00:41]} 36. Rd2
{[%clk 0:00:03.9]} 36... Rc8 {[%clk 0:00:40.8]} 37. Ke3 {[%clk 0:00:04.5]} 37...
Rc4 {[%clk 0:00:40.8]} 38. exf5+ {[%clk 0:00:04]} 38... gxf5 {[%clk 0:00:41.7]}
39. Rf2 {[%clk 0:00:03.8]} 39... f4+ {[%clk 0:00:41.3]} 40. Kf3 {[%clk 0:00:04]}
40... Ra4 {[%clk 0:00:41]} 41. Rc2 {[%clk 0:00:03.9]} 41... Ra3+ {[%clk
0:00:41.3]} 42. Kg4 {[%clk 0:00:04]} 42... Rg3+ {[%clk 0:00:40.1]} 43. Kh4
{[%clk 0:00:04.5]} 43... b4 {[%clk 0:00:40.6]} 44. Kh5 {[%clk 0:00:04.9]} 44...
a5 {[%clk 0:00:40.8]} 45. h4 {[%clk 0:00:05.4]} 45... a4 {[%clk 0:00:41.1]} 46.
Rb2 {[%clk 0:00:06]} 46... b3 {[%clk 0:00:40.4]} 47. axb3 {[%clk 0:00:06.4]}
47... Rxb3 {[%clk 0:00:39.9]} 48. Ra2 {[%clk 0:00:05.9]} 48... a3 {[%clk
0:00:39.3]} 49. Kg6 {[%clk 0:00:05.6]} 49... Rg3+ {[%clk 0:00:39.2]} 50. Kh7
{[%clk 0:00:06.1]} 50... Kf7 {[%clk 0:00:34.6]} 51. h5 {[%clk 0:00:06.6]} 51...
e4 {[%clk 0:00:32.9]} 52. h6 {[%clk 0:00:06.8]} 52... d5 {[%clk 0:00:30.9]} 53.
Kh8 {[%clk 0:00:07]} 53... Rc3 {[%clk 0:00:25.7]} 54. g4 {[%clk 0:00:03.4]}
54... Kg6 {[%clk 0:00:24.9]} 0-1